Workbook

Sheet Ferreycorp (hidden)
C46: Exercise for the calculation of Ferreycorp's benefits period 2021 | E46: 12000
E48: =+E47*0.128456563 -> 0
C50: Cálculo de beneficios correspondientes al período 2021 (dividendo ordinario a ser pagado el 4 de mayo de 2022)
C51: Number of Shares as of 18.04.2022
C55: Número de acciones al 18.04.2022 | E55: =+E54*0.128456563 -> 0
C58: Number of Shares as of 18.04.2022
C60: Liquidación Dividendos Jurídicas Nacionales - Pago 18 de mayo de 2022
C62: Número de acciones al 18.04.2022

Sheet Calculadora Dividendos
B6: REPARTO DE DIVIDENDOS
B9: AÑO | C9: NÚMERO DE ACCIONES | D9: VALOR NOMINAL UNITARIO | E9: CAPITAL SOCIAL (S/) | F9: UTILIDAD NETA MENOS RESERVAS (S/) | G9: REPARTO DE DIVIDENDOS DE ACUERDO A LA POLÍTICA VIGENTE | I9: DIVIDENDOS EN EFECTIVO (S/) | J9: % DE LAS UTILIDADES QUE SE DISTRIBUYEN | K9: DIVIDENDO EN EFECTIVO POR ACCIÓN (%) | L9: DIVIDENDO POR ACCIÓN (S/)
G10: 0.05 | H10: 0.5
G11: LÍMITE INFERIOR (5% DEL CAPITAL) | H11: LÍMITE SUPERIOR (50% DE LA UTILIDAD DE LIBRE DISPONIBILIDAD)
B12: 2003 | C12: 205000000 | D12: 1.1 | E12: =+C12*D12 -> 225500000 | F12: 18268787 | G12: =E12*$G$10 -> 11275000 | H12: =F12*$H$10 -> 9134393.5 | I12: =+H12 -> 9134393.5 | J12: =I12/F12 -> 0.5 | K12: 0.05 | L12: =+G12/C12 -> 0.055
B13: 2004 | C13: 218000000 | D13: 1.1 | E13: 239800000 | F13: 24793743 | G13: 11990000 | H13: =F13*$H$10 -> 12396871.5 | I13: =+G13 -> 11990000 | J13: =I13/F13 -> 0.4835897508 | K13: 0.05 | L13: 0.055
B14: 2005 | C14: 241980000 | D14: 1.1 | E14: 266178000 | F14: 27127826 | G14: 13308900 | H14: 13563913 | I14: =+G14 -> 13308900 | J14: 0.4905995785 | K14: 0.05 | L14: 0.055
B15: 2006 | C15: 258360000 | D15: 1.1 | E15: 284196000 | F15: 79972754.4 | G15: 14209800 | H15: 39986377.2 | I15: 28419600 | J15: 0.355366027 | K15: 0.1 | L15: 0.055
B16: 2007 | C16: 305128115 | D16: 1.1 | E16: 335640926.5 | F16: 114345493 | G16: 16782046.32 | H16: 57172746.5 | I16: 40289899 | J16: 0.3523523135 | K16: =+G16/E16 -> 0.05 | L16: 0.055
B17: 2008 | C17: 377680455 | D17: 1.1 | E17: 415448500.5 | F17: 72400381 | G17: 20772425.03 | H17: 36200190.5 | I17: 20772425 | J17: 0.2869104377 | K17: 0.05 | L17: 0.055
B18: 2009 | C18: 424816167 | D18: 1.1 | E18: 467297783.7 | F18: 90452887 | G18: 23364889.19 | H18: 45226443.5 | I18: 28037867 | J18: 0.3099720521 | K18: 0.06 | L18: 0.066
B19: 2010 | C19: 482691963 | D19: 1.1 | E19: 530961159.3 | F19: 124528171 | G19: 26548057.97 | H19: 62264085.5 | I19: 31857670 | J19: 0.2558270128 | K19: 0.06 | L19: 0.066
B20: 2011 | C20: 698402606 | D20: 1 | E20: 698402606 | F20: 146736476 | G20: 34920130.3 | H20: 73368238 | I20: 41904156 | J20: 0.285574229 | K20: 0.06 | L20: 0.06
B21: 2012 | C21: 803234873 | D21: 1 | E21: 803234873 | F21: 158285552 | G21: 40161743.65 | H21: 79142775.98 | I21: 48194092 | J21: 0.3044756227 | K21: 0.06 | L21: 0.06
B25: EJERCICIO | C25: NÚMERO DE ACCIONES | D25: VALOR NOMINAL UNITARIO | E25: CAPITAL SOCIAL (S/) | F25: UTILIDAD NETA MENOS RESERVAS (S/) | G25: REPARTO DE DIVIDENDOS DE ACUERDO A LA POLÍTICA VIGENTE | I25: DIVIDENDOS EN EFECTIVO (S/) | J25: % DE LAS UTILIDADES QUE SE DISTRIBUYEN | K25: DIVIDENDO EN EFECTIVO POR ACCIÓN (%) | L25: EFECTIVO DIVIDENDO POR ACCIÓN
G26: 0.05 | H26: 0.6
G27: LÍMITE INFERIOR (5% DEL CAPITAL) | H27: LÍMITE SUPERIOR (60% DE LA UTILIDAD DE LIBRE DISPONIBILIDAD)
B28: 2013 | C28: 945227102 | D28: 1 | E28: =+C28*D28 -> 945227102 | F28: 92996130.8 | G28: =E28*$G$26 -> 47261355.1 | H28: =F28*$H$26 -> 55797678.48 | I28: =+H28 -> 55797678.48 | J28: 0.6 | K28: =I28/C28 -> 0.05903097611 | L28: =K28 -> 0.05903097611
B29: 2014 | C29: 1014326324 | D29: 1 | E29: =+C29*D29 -> 1014326324 | F29: 117973036.2 | G29: =E29*$G$26 -> 50716316.2 | H29: 70783821.71 | I29: 60859579.44 | J29: 0.5158770292 | K29: 0.06 | L29: =K29 -> 0.06
B30: 2015 | C30: 1014326324 | D30: 1 | E30: 1014326324 | F30: 145589380.9 | G30: 50716316.2 | H30: 87353628.56 | I30: 87353628.56 | J30: 0.6 | K30: 0.08611984772 | L30: =K30 -> 0.08611984772
B31: 2015 | C31: 985224370 | D31: 1 | E31: 1014326324 | F31: 145589380.9 | G31: =E31*$G$26 -> 50716316.2 | H31: 87353628.56 | I31: 87353628.56 | J31: =I31/F31 -> 0.6 | K31: 0.08866369044 | L31: 0.08866
B32: 2016 | C32: 968687484 | D32: 1 | E32: 1014326324 | F32: 207390441.3 | G32: 50716316.2 | H32: 124434264.8 | I32: 124434264.8 | J32: 0.6 | K32: 0.128456563 | L32: =+K32 -> 0.128456563
B33: 2017 | C33: 975683029 | D33: 1 | E33: 975683029 | F33: 240311481.1 | G33: =E33*$G$26 -> 48784151.45 | H33: 144186888.7 | I33: 132171314.6 | J33: =I33/F33 -> 0.55 | K33: 0.1354654234 | L33: =+K33 -> 0.1354654234
B34: 2018 | C34: 975683029 | D34: 1 | E34: 975683029 | F34: 202525643.2 | G34: =E34*$G$26 -> 48784151.45 | H34: 121515385.9 | I34: 30123185.25 | J34: =I34/$F$34 -> 0.1487376352 | K34: =+I34/C34 -> 0.0308739461 | L34: =+K34 -> 0.0308739461
C35: 975683029 | D35: 1 | E35: 975683029 | I35: 50000000 | J35: =I35/$F$34 -> 0.2468823167 | K35: =+L35 -> 0.05124615117 | L35: 0.05124615117
C36: 975683029 | D36: 1 | E36: 975683029 | I36: 50000000 | J36: =I36/$F$34 -> 0.2468823167 | K36: =+L36 -> 0.05124615117 | L36: 0.05124615117
B37: 2019 | C37: 958404238 | D37: 1 | E37: =+C37*D37 -> 958404238 | F37: 244854693.6 | G37: 48748151.45 | H37: =F37*H26 -> 146912816.2 | I37: =146912816.15 -> 146912816.2 | J37: =I37/F37 -> 0.6 | K37: =+L37 -> 0.15328899 | L37: 0.15328899
B38: 2020 | C38: 948’554,069 | D38: 1 | E38: 975683029 | F38: 143948109.6 | G38: =+F38*G26 -> 7197405.478 | H38: =+F38*H26 -> 86368865.74 | I38: 86368865.74 | J38: 0.6 | K38: =+L38 -> 0.09105318143 | L38: 0.09105318143
B39: 2021 | C39: 946’143,295 | D39: 1 | E39: 975683029 | F39: 376054298 | G39: 18802714.9 | H39: 225632578.8 | I39: 100000000 | J39: 0.2659190455 | K39: 0.1056922356 | L39: 0.1056922356
C40: 946063288 | D40: 1 | E40: 958894238 | I40: 125632578.8 | J40: 0.3340809545 | K40: 0.1327951104 | L40: 0.1327951104
B41: 2022 | C41: 944959670 | D41: 1 | E41: 946063288 | F41: 418879443.6 | G41: 47303164.4 | H41: 251327666.1 | I41: 120000000 | J41: 0.2864786082 | K41: 0.1269895465 | L41: 0.1269895465
C42: 944990670 | D42: 1 | I42: 131327666.1 | J42: 0.3135213918 | K42: 0.1389724474 | L42: 0.1389724474
C49: Sr Accionista: Para efectuar el cálculo deberá llenar el recuadro que le corresponda según su número de acciones.
C51: Cálculo de beneficios correspondientes al período 2022 (dividendo ordinario a ser pagado el 05 de mayo de 2023)
C54: Liquidación Dividendos Personas Naturales y Juridicas Extranjeras - Pago 05 de mayo de 2023
C56: Número de acciones al 17.03.2023 | F56: 0
C57: Dividendo | F57: =+($F$56*L42) -> 0
C58: Impuesto a la renta | F58: =+$F$57*0.05 -> 0
C59: Neto a pagar | F59: =+F57-F58 -> 0
C61: Liquidación Dividendos Jurídicas Nacionales - Pago 05 de mayo de 2023
C63: Número de acciones al 17.03.2023
C64: Dividendo | F64: =+(F63*L41) -> 0
C65: Neto a pagar | F65: =+F64 -> 0

Sheet Dividends Calculator (hidden)
B6: DIVIDENDS DISTRIBUTION
B9: YEAR | C9: NUMBER OF SHARES | D9: UNIT NOMINAL VALUE | E9: SHARE CAPITAL (S/.) | F9: NET INCOME MINUS RESERVES (S/.) | G9: DIVIDENDS DISTRIBUTION ACCORDING TO CURRENT POLICY | I9: CASH DIVIDEND (S/.) | J9: % OF THE INCOME DISTRIBUTION | K9: CASH DIVIDEND PER SHARE (%) | L9: CASH DIVIDEND PER SHARE (S/.)
G10: 0.05 | H10: 0.5
G11: INFERIOR LIMIT (5% OF SHARE CAPITAL) | H11: SUPERIOR LIMIT (50% OF FREE DISPOSITION INCOME)
B12: 2003 | C12: 205000000 | D12: 1.1 | E12: =+C12*D12 -> 225500000 | F12: 18268787 | G12: =E12*$G$10 -> 11275000 | H12: =F12*$H$10 -> 9134393.5 | I12: =+H12 -> 9134393.5 | J12: =I12/F12 -> 0.5 | K12: 0.05 | L12: =+G12/C12 -> 0.055
B13: 2004 | C13: 218000000 | D13: 1.1 | E13: 239800000 | F13: 24793743 | G13: 11990000 | H13: =F13*$H$10 -> 12396871.5 | I13: =+G13 -> 11990000 | J13: =I13/F13 -> 0.4835897508 | K13: 0.05 | L13: 0.055
B14: 2005 | C14: 241980000 | D14: 1.1 | E14: 266178000 | F14: 27127826 | G14: 13308900 | H14: 13563913 | I14: =+G14 -> 13308900 | J14: 0.4905995785 | K14: 0.05 | L14: 0.055
B15: 2006 | C15: 258360000 | D15: 1.1 | E15: 284196000 | F15: 79972754.4 | G15: 14209800 | H15: 39986377.2 | I15: 28419600 | J15: 0.355366027 | K15: 0.1 | L15: 0.055
B16: 2007 | C16: 305128115 | D16: 1.1 | E16: 335640926.5 | F16: 114345493 | G16: 16782046.32 | H16: 57172746.5 | I16: 40289899 | J16: 0.3523523135 | K16: =+G16/E16 -> 0.05 | L16: 0.055
B17: 2008 | C17: 377680455 | D17: 1.1 | E17: 415448500.5 | F17: 72400381 | G17: 20772425.03 | H17: 36200190.5 | I17: 20772425 | J17: 0.2869104377 | K17: 0.05 | L17: 0.055
B18: 2009 | C18: 424816167 | D18: 1.1 | E18: 467297783.7 | F18: 90452887 | G18: 23364889.19 | H18: 45226443.5 | I18: 28037867 | J18: 0.3099720521 | K18: 0.06 | L18: 0.066
B19: 2010 | C19: 482691963 | D19: 1.1 | E19: 530961159.3 | F19: 124528171 | G19: 26548057.97 | H19: 62264085.5 | I19: 31857670 | J19: 0.2558270128 | K19: 0.06 | L19: 0.066
B20: 2011 | C20: 698402606 | D20: 1 | E20: 698402606 | F20: 146736476 | G20: 34920130.3 | H20: 73368238 | I20: 41904156 | J20: 0.285574229 | K20: 0.06 | L20: 0.06
B21: 2012 | C21: 803234873 | D21: 1 | E21: 803234873 | F21: 158285552 | G21: 40161743.65 | H21: 79142775.98 | I21: 48194092 | J21: 0.3044756227 | K21: 0.06 | L21: 0.06
B25: YEAR | C25: NUMBER OF SHARES | D25: UNIT NOMINAL VALUE | E25: SHARE CAPITAL (S/.) | F25: NET INCOME MINUS RESERVES (S/.) | G25: DIVIDENDS DISTRIBUTION ACCORDING TO CURRENT POLICY | I25: CASH DIVIDEND (S/.) | J25: % OF THE INCOME DISTRIBUTION | K25: CASH DIVIDEND PER SHARE (%) | L25: CASH DIVIDEND PER SHARE (S/.)
G26: 0.05 | H26: 0.6
G27: INFERIOR LIMIT (5% OF SHARE CAPITAL) | H27: SUPERIOR LIMIT (60% OF FREE DISPOSITION INCOME)
B28: 2013 | C28: 945227102 | D28: 1 | E28: =+C28*D28 -> 945227102 | F28: 92996130.8 | G28: =E28*$G$26 -> 47261355.1 | H28: =F28*$H$26 -> 55797678.48 | I28: =+H28 -> 55797678.48 | J28: 0.6 | K28: =I28/C28 -> 0.05903097611 | L28: =K28 -> 0.05903097611
B29: 2014 | C29: 1014326324 | D29: 1 | E29: =+C29*D29 -> 1014326324 | F29: 117973036.2 | G29: =E29*$G$26 -> 50716316.2 | H29: 70783821.71 | I29: 60859579.44 | J29: 0.5158770292 | K29: 0.06 | L29: =K29 -> 0.06
B30: 2015 | C30: 1014326324 | D30: 1 | E30: 1014326324 | F30: 145589380.9 | G30: 50716316.2 | H30: 87353628.56 | I30: 87353628.56 | J30: 0.6 | K30: 0.08611984772 | L30: =K30 -> 0.08611984772
B31: 2015 | C31: 985224370 | D31: 1 | E31: 1014326324 | F31: 145589380.9 | G31: 50716316.2 | H31: 87353628.56 | I31: 87353628.56 | J31: 0.6 | K31: 0.08866369044 | L31: 0.08866
B32: 2016 | C32: 968687484 | D32: 1 | E32: 1014326324 | F32: 207390441.3 | G32: 50716316.2 | H32: 124434264.8 | I32: 124434264.8 | J32: 0.6 | K32: 0.128456563 | L32: =+K32 -> 0.128456563
B33: 2017 | C33: 975683029 | D33: 1 | E33: 975683029 | F33: 240311481 | G33: =E33*$G$26 -> 48784151.45 | H33: 144186888.6 | I33: 132171314.6 | J33: =I33/F33 -> 0.5500000002 | K33: 0.1354654234 | L33: =+K33 -> 0.1354654234
B34: 2018 | C34: 975683029 | D34: 1 | E34: 975683029 | F34: 202252643.2 | G34: 48784151.45 | H34: 121515385.9 | I34: =+H34 -> 121515385.9 | J34: 0.6008098782 | K34: 0.1245439168 | L34: =+K34 -> 0.1245439168
B35: 2019 | C35: 958404238 | D35: 1 | E35: =+C35*D35 -> 958404238 | F35: 244854693.6 | G35: =+F35*$G$26 -> 12242734.68 | H35: =+F35*$H$26 -> 146912816.2 | I35: =+H35 -> 146912816.2 | J35: =+I35/F35 -> 0.6 | K35: 0.15328899 | L35: 0.15328899
B36: 2020 | C36: 948’554,069 | D36: 1 | E36: 975683029 | F36: 143948109.6 | G36: 7197405.478 | H36: 86368865.74 | I36: 86368865.74 | J36: 0.6 | K36: 0.09105318143 | L36: 0.09105318143
B37: 2021 | C37: 946’143,295 | D37: 1 | E37: 975683029 | F37: 376054298 | G37: 18802714.9 | H37: 225632578.8 | I37: 100000000 | J37: 0.2659190455 | K37: 0.1056922356 | L37: 0.1056922356
C38: 946’063,288 | D38: 1 | E38: 958894238 | I38: 125632578.8 | J38: 0.3340809545 | K38: 0.1327951104 | L38: 0.1327951104
C44: Mr. Shareholder: In order to proceed with the calculation, it is necessary to fill out the corresponding box according to your number of shares.
C46: Exercise for the calculation of Ferreycorp's benefits period 2021
C49: Dividend Liquidation for Natural Person and Foreign Entities - First Payment
C51: Number of Shares as of 18.04.2022
C52: Dividend | F52: =+F51*L38 -> 0
C53: Income tax | F53: =+(F52*5%) -> 0
C54: Net to pay | F54: =+F52-F53 -> 0
C56: Dividend Liquidation for Peruvian Legal Person - First Payment
C58: Number of Shares as of 18.04.2022
C59: Dividend | F59: =+F58*L38 -> 0
C60: Net to pay | F60: =+F59 -> 0
